[Event "Titled Tuesday Blitz January 18 2022"]
[White "Srihari L R"]
[Black "Jobava, Baadur"]
[WhiteFideId "46617116"]
[BlackFideId "13601520"]
[WhiteElo "2121"]
[BlackElo "2617"]
[Result "1-0"]
[Round "10"]
[TimeControl "180+1"]
[Date "2022.01.18"]
[WhiteClock "0:00:30"]
[BlackClock "0:01:28"]

1. d4 {[%clk 0:03:00]}  d5 {[%clk 0:02:57]} 2. c4 {[%clk 0:03:00]}  dxc4 {[%clk 0:02:55]} 3. Nf3 {[%clk 0:02:59]}  Nf6 {[%clk 0:02:55]} 4. e3 {[%clk 0:02:59]}  Bg4 {[%clk 0:02:55]} 5. Bxc4 {[%clk 0:02:59]}  e6 {[%clk 0:02:56]} 6. h3 {[%clk 0:02:58]}  Bh5 {[%clk 0:02:56]} 7. O-O {[%clk 0:02:58]}  Bd6 {[%clk 0:02:55]} 8. Qe2 {[%clk 0:02:57]}  Nc6 {[%clk 0:02:51]} 9. Rd1 {[%clk 0:02:56]}  O-O {[%clk 0:02:51]} 10. Nc3 {[%clk 0:02:42]}  Qe8 {[%clk 0:02:51]} 11. e4 {[%clk 0:02:40]}  e5 {[%clk 0:02:37]} 12. Nb5 {[%clk 0:02:31]}  Nxd4 {[%clk 0:02:32]} 13. Nbxd4 {[%clk 0:02:27]}  exd4 {[%clk 0:02:32]} 14. g4 {[%clk 0:02:15]}  Nxg4 {[%clk 0:02:31]} 15. hxg4 {[%clk 0:02:14]}  Bxg4 {[%clk 0:02:32]} 16. Rxd4 {[%clk 0:01:56]}  Rd8 {[%clk 0:02:29]} 17. e5 {[%clk 0:01:53]}  Bxf3 {[%clk 0:02:29]} 18. Qxf3 {[%clk 0:01:51]}  Qxe5 {[%clk 0:02:29]} 19. Rh4 {[%clk 0:01:43]}  Qe1+ {[%clk 0:02:13]} 20. Kg2 {[%clk 0:01:42]}  g6 {[%clk 0:02:04]} 21. Bh6 {[%clk 0:01:24]}  Qe5 {[%clk 0:01:59]} 22. Bxf8 {[%clk 0:01:18]}  Rxf8 {[%clk 0:02:00]} 23. Rah1 {[%clk 0:01:18]}  h5 {[%clk 0:01:59]} 24. Qe3 {[%clk 0:01:05]}  Qxb2 {[%clk 0:01:54]} 25. Qg5 {[%clk 0:00:58]}  Qg7 {[%clk 0:01:51]} 26. R4h3 {[%clk 0:00:46]}  Re8 {[%clk 0:01:35]} 27. Rf3 {[%clk 0:00:40]}  Re7 {[%clk 0:01:34]} 28. Rd1 {[%clk 0:00:40]}  Kf8 {[%clk 0:01:28]} 29. Rxf7+ {[%clk 0:00:32]}  Qxf7 {[%clk 0:01:28]} 30. Bxf7 {[%clk 0:00:31]}  Kxf7 {[%clk 0:01:29]} 31. Qd5+ {[%clk 0:00:30]}  Kg7 {[%clk 0:01:28]} 32. Qxb7 {[%clk 0:00:30]}  a5 {[%clk 0:01:28]} 33. Rxd6 {[%clk 0:00:30]} 1-0


[Site "https://www.chess.com"]

[Event "Titled Tuesday Blitz January 18 2022"]
[White "Sviridov, Valery"]
[Black "Nakamura, Hikaru"]
[WhiteFideId "4120680"]
[BlackFideId "2016192"]
[WhiteElo "2454"]
[BlackElo "2850"]
[Result "1-0"]
[Round "10"]
[TimeControl "180+1"]
[Date "2022.01.18"]
[WhiteClock "0:00:39"]
[BlackClock "0:00:05"]

1. d4 {[%clk 0:03:00]}  Nf6 {[%clk 0:02:57]} 2. Nf3 {[%clk 0:03:00]}  g6 {[%clk 0:02:57]} 3. g3 {[%clk 0:02:57]}  Bg7 {[%clk 0:02:56]} 4. Bg2 {[%clk 0:02:57]}  O-O {[%clk 0:02:57]} 5. O-O {[%clk 0:02:57]}  d6 {[%clk 0:02:58]} 6. c4 {[%clk 0:02:58]}  Nc6 {[%clk 0:02:58]} 7. Nc3 {[%clk 0:02:58]}  Bg4 {[%clk 0:02:59]} 8. d5 {[%clk 0:02:58]}  Na5 {[%clk 0:02:59]} 9. Nd2 {[%clk 0:02:58]}  c5 {[%clk 0:03:00]} 10. h3 {[%clk 0:02:57]}  Bd7 {[%clk 0:03:00]} 11. Qc2 {[%clk 0:02:57]}  a6 {[%clk 0:03:00]} 12. b3 {[%clk 0:02:57]}  b5 {[%clk 0:02:59]} 13. Bb2 {[%clk 0:02:58]}  Rb8 {[%clk 0:03:00]} 14. Rab1 {[%clk 0:02:58]}  e5 {[%clk 0:02:58]} 15. dxe6 {[%clk 0:02:58]}  fxe6 {[%clk 0:02:47]} 16. cxb5 {[%clk 0:02:46]}  axb5 {[%clk 0:02:47]} 17. Nce4 {[%clk 0:02:46]}  Bc6 {[%clk 0:01:59]} 18. Rfd1 {[%clk 0:02:18]}  Nd5 {[%clk 0:01:52]} 19. Bxg7 {[%clk 0:02:15]}  Kxg7 {[%clk 0:01:53]} 20. a3 {[%clk 0:02:12]}  b4 {[%clk 0:01:36]} 21. Nc4 {[%clk 0:02:11]}  bxa3 {[%clk 0:01:33]} 22. Ncxd6 {[%clk 0:02:08]}  Qc7 {[%clk 0:01:11]} 23. Ra1 {[%clk 0:01:46]}  Nxb3 {[%clk 0:00:40]} 24. Rxa3 {[%clk 0:01:46]}  Nd4 {[%clk 0:00:40]} 25. Qxc5 {[%clk 0:01:45]}  Nxe2+ {[%clk 0:00:40]} 26. Kh2 {[%clk 0:01:45]}  Qb6 {[%clk 0:00:37]} 27. Ra7+ {[%clk 0:01:34]}  Kg8 {[%clk 0:00:37]} 28. Rd2 {[%clk 0:01:25]}  Qxc5 {[%clk 0:00:32]} 29. Nxc5 {[%clk 0:01:25]}  Rxf2 {[%clk 0:00:33]} 30. Nde4 {[%clk 0:01:14]}  Rxg2+ {[%clk 0:00:27]} 31. Kxg2 {[%clk 0:01:15]}  Ndc3 {[%clk 0:00:26]} 32. Kh2 {[%clk 0:01:15]}  Nxe4 {[%clk 0:00:22]} 33. Nxe4 {[%clk 0:01:16]}  Bxe4 {[%clk 0:00:22]} 34. Rxe2 {[%clk 0:01:16]}  Bd5 {[%clk 0:00:23]} 35. Rc2 {[%clk 0:01:13]}  g5 {[%clk 0:00:14]} 36. g4 {[%clk 0:01:13]}  h6 {[%clk 0:00:14]} 37. Rcc7 {[%clk 0:01:11]}  Be4 {[%clk 0:00:13]} 38. Re7 {[%clk 0:01:11]}  Bd5 {[%clk 0:00:10]} 39. Kg1 {[%clk 0:01:10]}  Kf8 {[%clk 0:00:05]} 40. Rh7 {[%clk 0:01:09]}  Kg8 {[%clk 0:00:06]} 41. Rhc7 {[%clk 0:01:08]}  Kf8 {[%clk 0:00:05]} 42. Kf2 {[%clk 0:01:08]}  Kg8 {[%clk 0:00:04]} 43. Ke3 {[%clk 0:01:08]}  e5 {[%clk 0:00:05]} 44. Re7 {[%clk 0:01:03]}  Bg2 {[%clk 0:00:05]} 45. Rg7+ {[%clk 0:01:00]}  Kf8 {[%clk 0:00:05]} 46. Rh7 {[%clk 0:01:01]}  Kg8 {[%clk 0:00:06]} 47. Rxh6 {[%clk 0:01:01]}  Bxh3 {[%clk 0:00:07]} 48. Rg6+ {[%clk 0:00:59]}  Kf8 {[%clk 0:00:06]} 49. Rxg5 {[%clk 0:00:59]}  Rb3+ {[%clk 0:00:05]} 50. Kf2 {[%clk 0:00:58]}  Rb2+ {[%clk 0:00:05]} 51. Kg3 {[%clk 0:00:57]}  Rb3+ {[%clk 0:00:06]} 52. Kh4 {[%clk 0:00:58]}  Bg2 {[%clk 0:00:05]} 53. Rf5+ {[%clk 0:00:58]}  Kg8 {[%clk 0:00:05]} 54. Rxe5 {[%clk 0:00:58]}  Rb8 {[%clk 0:00:05]} 55. Kg5 {[%clk 0:00:57]}  Bf1 {[%clk 0:00:05]} 56. Ree7 {[%clk 0:00:55]}  Bd3 {[%clk 0:00:06]} 57. Red7 {[%clk 0:00:54]}  Bc2 {[%clk 0:00:06]} 58. Rac7 {[%clk 0:00:53]}  Be4 {[%clk 0:00:05]} 59. Rg7+ {[%clk 0:00:53]}  Kh8 {[%clk 0:00:05]} 60. Rge7 {[%clk 0:00:53]}  Bd3 {[%clk 0:00:06]} 61. Kh4 {[%clk 0:00:53]}  Kg8 {[%clk 0:00:06]} 62. Re3 {[%clk 0:00:52]}  Bg6 {[%clk 0:00:06]} 63. Re6 {[%clk 0:00:52]}  Bb1 {[%clk 0:00:06]} 64. Rec6 {[%clk 0:00:52]}  Rb4 {[%clk 0:00:05]} 65. Rc4 {[%clk 0:00:48]}  Rb6 {[%clk 0:00:05]} 66. Rd4 {[%clk 0:00:46]}  Rb8 {[%clk 0:00:05]} 67. Rdd7 {[%clk 0:00:44]}  Be4 {[%clk 0:00:03]} 68. Kg3 {[%clk 0:00:44]}  Ra8 {[%clk 0:00:02]} 69. Kf4 {[%clk 0:00:44]}  Bb1 {[%clk 0:00:03]} 70. Ke5 {[%clk 0:00:44]}  Re8+ {[%clk 0:00:02]} 71. Kd6 {[%clk 0:00:43]}  Rf8 {[%clk 0:00:03]} 72. Kc5 {[%clk 0:00:40]}  Be4 {[%clk 0:00:03]} 73. Kb6 {[%clk 0:00:40]}  Bb1 {[%clk 0:00:04]} 74. Ra7 {[%clk 0:00:40]}  Be4 {[%clk 0:00:05]} 75. Kc7 {[%clk 0:00:39]}  Bf3 {[%clk 0:00:05]} 76. Kd6 {[%clk 0:00:38]}  Be4 {[%clk 0:00:05]} 77. g5 {[%clk 0:00:38]}  Bb1 {[%clk 0:00:05]} 78. Kc7 {[%clk 0:00:39]}  Bf5 {[%clk 0:00:05]} 79. Rd8 {[%clk 0:00:39]}  Rxd8 {[%clk 0:00:04]} 80. Kxd8 {[%clk 0:00:40]}  Bb1 {[%clk 0:00:05]} 81. Re7 {[%clk 0:00:39]}  Bf5 {[%clk 0:00:05]} 82. Kc7 {[%clk 0:00:38]}  Kf8 {[%clk 0:00:05]} 83. Kd6 {[%clk 0:00:38]}  Bb1 {[%clk 0:00:06]} 84. Ra7 {[%clk 0:00:38]}  Bc2 {[%clk 0:00:05]} 85. Ke5 {[%clk 0:00:39]} 1-0


[Site "https://www.chess.com"]

[Event "Titled Tuesday Blitz January 18 2022"]
[White "Vignesh, N R"]
[Black "Devaev, Alexander"]
[WhiteFideId "25012215"]
[BlackFideId "4169395"]
[WhiteElo "2395"]
[BlackElo "2185"]
[Result "1-0"]
[Round "10"]
[TimeControl "180+1"]
[Date "2022.01.18"]
[WhiteClock "0:00:27"]
[BlackClock "0:00:04"]

1. d4 {[%clk 0:02:57]}  Nf6 {[%clk 0:02:52]} 2. c4 {[%clk 0:02:56]}  e6 {[%clk 0:02:53]} 3. Nc3 {[%clk 0:02:56]}  Bb4 {[%clk 0:02:53]} 4. e3 {[%clk 0:02:55]}  c5 {[%clk 0:02:54]} 5. Nf3 {[%clk 0:02:53]}  cxd4 {[%clk 0:02:54]} 6. exd4 {[%clk 0:02:53]}  d5 {[%clk 0:02:54]} 7. cxd5 {[%clk 0:02:52]}  Nxd5 {[%clk 0:02:54]} 8. Bd2 {[%clk 0:02:51]}  Nc6 {[%clk 0:02:54]} 9. Be2 {[%clk 0:02:51]}  O-O {[%clk 0:02:55]} 10. O-O {[%clk 0:02:51]}  Be7 {[%clk 0:02:54]} 11. Re1 {[%clk 0:02:50]}  Bf6 {[%clk 0:02:53]} 12. Bc1 {[%clk 0:02:46]}  b6 {[%clk 0:02:44]} 13. Bc4 {[%clk 0:02:36]}  Nce7 {[%clk 0:02:41]} 14. Ne5 {[%clk 0:02:26]}  Bb7 {[%clk 0:02:41]} 15. Bb3 {[%clk 0:02:22]}  Ng6 {[%clk 0:02:34]} 16. Ne4 {[%clk 0:02:06]}  Bxe5 {[%clk 0:01:35]} 17. dxe5 {[%clk 0:01:59]}  Nxe5 {[%clk 0:01:34]} 18. Qh5 {[%clk 0:01:58]}  Ng6 {[%clk 0:01:29]} 19. Ng5 {[%clk 0:01:51]}  Nf6 {[%clk 0:01:28]} 20. Qh3 {[%clk 0:01:51]}  Bd5 {[%clk 0:01:25]} 21. Rd1 {[%clk 0:01:28]}  Qc7 {[%clk 0:00:58]} 22. Bxd5 {[%clk 0:01:15]}  exd5 {[%clk 0:00:56]} 23. Be3 {[%clk 0:01:15]}  h6 {[%clk 0:00:51]} 24. Nf3 {[%clk 0:01:15]}  Rad8 {[%clk 0:00:40]} 25. Rac1 {[%clk 0:01:12]}  Qd7 {[%clk 0:00:35]} 26. Qg3 {[%clk 0:01:06]}  Ne4 {[%clk 0:00:33]} 27. Qc7 {[%clk 0:01:05]}  Rfe8 {[%clk 0:00:27]} 28. h3 {[%clk 0:01:03]}  Re7 {[%clk 0:00:22]} 29. Qc2 {[%clk 0:00:59]}  Ree8 {[%clk 0:00:20]} 30. Qb3 {[%clk 0:00:53]}  Qe6 {[%clk 0:00:14]} 31. Nd4 {[%clk 0:00:52]}  Qf6 {[%clk 0:00:14]} 32. Nc6 {[%clk 0:00:51]}  Rd7 {[%clk 0:00:14]} 33. Rxd5 {[%clk 0:00:39]}  Rc7 {[%clk 0:00:13]} 34. Qa4 {[%clk 0:00:33]}  Qe6 {[%clk 0:00:05]} 35. Rdd1 {[%clk 0:00:29]}  Qc8 {[%clk 0:00:04]} 36. Nb4 {[%clk 0:00:27]} 1-0


[Site "https://www.chess.com"]

[Event "Titled Tuesday Blitz January 18 2022"]
[White "Villalba, Marcelo"]
[Black "Azadaliyev, Jahandar"]
[WhiteFideId "3701859"]
[BlackFideId "13425811"]
[WhiteElo "2169"]
[BlackElo "1795"]
[Result "1-0"]
[Round "10"]
[TimeControl "180+1"]
[Date "2022.01.18"]
[WhiteClock "0:00:54"]
[BlackClock "0:01:36"]

1. e4 {[%clk 0:03:00]}  c6 {[%clk 0:02:58]} 2. Nf3 {[%clk 0:02:59]}  d5 {[%clk 0:02:58]} 3. d3 {[%clk 0:03:00]}  Bg4 {[%clk 0:02:58]} 4. Nbd2 {[%clk 0:02:57]}  e6 {[%clk 0:02:57]} 5. Be2 {[%clk 0:02:57]}  Nd7 {[%clk 0:02:56]} 6. O-O {[%clk 0:02:51]}  Bd6 {[%clk 0:02:49]} 7. c3 {[%clk 0:02:50]}  Qc7 {[%clk 0:02:48]} 8. h3 {[%clk 0:02:23]}  Bh5 {[%clk 0:02:47]} 9. d4 {[%clk 0:02:20]}  dxe4 {[%clk 0:02:41]} 10. Nxe4 {[%clk 0:02:20]}  Bf4 {[%clk 0:02:40]} 11. Ne5 {[%clk 0:02:05]}  Bxe2 {[%clk 0:02:35]} 12. Qxe2 {[%clk 0:02:01]}  Bxc1 {[%clk 0:02:31]} 13. Raxc1 {[%clk 0:01:52]}  Ngf6 {[%clk 0:02:25]} 14. Nxf7 {[%clk 0:01:37]}  Kxf7 {[%clk 0:02:18]} 15. Ng5+ {[%clk 0:01:37]}  Kg6 {[%clk 0:02:19]} 16. f4 {[%clk 0:01:20]}  Nd5 {[%clk 0:01:49]} 17. Qe4+ {[%clk 0:01:04]}  Kh5 {[%clk 0:01:38]} 18. g4+ {[%clk 0:01:01]}  Kh4 {[%clk 0:01:36]} 19. Qe1# {[%clk 0:00:54]} 1-0


[Site "https://www.chess.com"]

[Event "Titled Tuesday Blitz January 18 2022"]
[White "Vokhidov, Shamsiddin"]
[Black "Andreikin, Dmitry"]
[WhiteFideId "14204223"]
[BlackFideId "4158814"]
[WhiteElo "2611"]
[BlackElo "2736"]
[Result "0-1"]
[Round "10"]
[TimeControl "180+1"]
[Date "2022.01.18"]
[WhiteClock "0:00:07"]
[BlackClock "0:00:08"]

1. e4 {[%clk 0:03:00]}  c5 {[%clk 0:02:59]} 2. Nf3 {[%clk 0:03:01]}  e6 {[%clk 0:03:00]} 3. d4 {[%clk 0:02:59]}  cxd4 {[%clk 0:03:01]} 4. Nxd4 {[%clk 0:03:00]}  Nc6 {[%clk 0:03:00]} 5. Nc3 {[%clk 0:03:00]}  a6 {[%clk 0:03:01]} 6. Qd3 {[%clk 0:02:58]}  Nxd4 {[%clk 0:02:55]} 7. Qxd4 {[%clk 0:02:59]}  Ne7 {[%clk 0:02:56]} 8. Be3 {[%clk 0:02:55]}  b5 {[%clk 0:02:47]} 9. f3 {[%clk 0:02:48]}  Nc6 {[%clk 0:02:47]} 10. Qd2 {[%clk 0:02:46]}  Be7 {[%clk 0:02:36]} 11. O-O-O {[%clk 0:02:43]}  O-O {[%clk 0:02:35]} 12. Kb1 {[%clk 0:02:42]}  Qa5 {[%clk 0:02:23]} 13. Ne2 {[%clk 0:02:34]}  Qxd2 {[%clk 0:02:18]} 14. Rxd2 {[%clk 0:02:32]}  d6 {[%clk 0:02:18]} 15. Nd4 {[%clk 0:02:25]}  Bb7 {[%clk 0:02:04]} 16. Nxc6 {[%clk 0:02:23]}  Bxc6 {[%clk 0:02:05]} 17. Bd3 {[%clk 0:02:01]}  b4 {[%clk 0:01:44]} 18. Bc4 {[%clk 0:01:59]}  Rfc8 {[%clk 0:01:27]} 19. b3 {[%clk 0:01:57]}  Bb5 {[%clk 0:01:08]} 20. Bxb5 {[%clk 0:01:47]}  axb5 {[%clk 0:01:09]} 21. Rd4 {[%clk 0:01:47]}  Ra5 {[%clk 0:00:48]} 22. Rxb4 {[%clk 0:00:52]}  d5 {[%clk 0:00:47]} 23. Rd4 {[%clk 0:00:52]}  Bf6 {[%clk 0:00:47]} 24. exd5 {[%clk 0:00:43]}  Bxd4 {[%clk 0:00:44]} 25. Bxd4 {[%clk 0:00:44]}  exd5 {[%clk 0:00:42]} 26. Re1 {[%clk 0:00:43]}  Ra6 {[%clk 0:00:39]} 27. Re5 {[%clk 0:00:40]}  Rd6 {[%clk 0:00:31]} 28. c3 {[%clk 0:00:35]}  Kf8 {[%clk 0:00:23]} 29. Kb2 {[%clk 0:00:34]}  f6 {[%clk 0:00:22]} 30. Re2 {[%clk 0:00:30]}  Kf7 {[%clk 0:00:22]} 31. Ka3 {[%clk 0:00:30]}  Ra6+ {[%clk 0:00:17]} 32. Kb4 {[%clk 0:00:29]}  Rca8 {[%clk 0:00:18]} 33. Kxb5 {[%clk 0:00:20]}  Rxa2 {[%clk 0:00:18]} 34. Rxa2 {[%clk 0:00:18]}  Rxa2 {[%clk 0:00:19]} 35. b4 {[%clk 0:00:18]}  Rxg2 {[%clk 0:00:19]} 36. Kc6 {[%clk 0:00:18]}  Rxh2 {[%clk 0:00:16]} 37. b5 {[%clk 0:00:18]}  Ke6 {[%clk 0:00:11]} 38. b6 {[%clk 0:00:18]}  Rb2 {[%clk 0:00:12]} 39. b7 {[%clk 0:00:18]}  Rxb7 {[%clk 0:00:07]} 40. Kxb7 {[%clk 0:00:19]}  h5 {[%clk 0:00:07]} 41. Kc6 {[%clk 0:00:15]}  h4 {[%clk 0:00:07]} 42. Bf2 {[%clk 0:00:14]}  g5 {[%clk 0:00:07]} 43. Kc5 {[%clk 0:00:10]}  f5 {[%clk 0:00:06]} 44. Kd4 {[%clk 0:00:09]}  f4 {[%clk 0:00:05]} 45. Bg1 {[%clk 0:00:09]}  h3 {[%clk 0:00:04]} 46. Bh2 {[%clk 0:00:08]}  Kd6 {[%clk 0:00:04]} 47. Bg1 {[%clk 0:00:05]}  Ke6 {[%clk 0:00:03]} 48. Bh2 {[%clk 0:00:05]}  Kf6 {[%clk 0:00:02]} 49. Kxd5 {[%clk 0:00:05]}  g4 {[%clk 0:00:03]} 50. fxg4 {[%clk 0:00:03]}  f3 {[%clk 0:00:04]} 51. Bg3 {[%clk 0:00:01]}  f2 {[%clk 0:00:04]} 52. Bxf2 {[%clk 0:00:02]}  h2 {[%clk 0:00:04]} 53. Bd4+ {[%clk 0:00:03]}  Kg6 {[%clk 0:00:05]} 54. Kd6 {[%clk 0:00:03]}  h1=Q {[%clk 0:00:05]} 55. Kc5 {[%clk 0:00:04]}  Qe4 {[%clk 0:00:06]} 56. c4 {[%clk 0:00:04]}  Qxg4 {[%clk 0:00:06]} 57. Bc3 {[%clk 0:00:05]}  Qe4 {[%clk 0:00:06]} 58. Kb4 {[%clk 0:00:06]}  Kf5 {[%clk 0:00:06]} 59. Kb5 {[%clk 0:00:07]}  Ke6 {[%clk 0:00:07]} 60. c5 {[%clk 0:00:07]}  Qd3+ {[%clk 0:00:07]} 61. Kb4 {[%clk 0:00:07]}  Kd5 {[%clk 0:00:08]} 0-1


[Site "https://www.chess.com"]

[Event "Titled Tuesday Blitz January 18 2022"]
[White "Xiong, Jeffery"]
[Black "Deac, Bogdan-Daniel"]
[WhiteFideId "2047640"]
[BlackFideId "1226380"]
[WhiteElo "2727"]
[BlackElo "2646"]
[Result "1-0"]
[Round "10"]
[TimeControl "180+1"]
[Date "2022.01.18"]
[WhiteClock "0:00:27"]
[BlackClock "0:00:07"]

1. Nf3 {[%clk 0:03:00]}  d5 {[%clk 0:02:57]} 2. c4 {[%clk 0:03:01]}  e6 {[%clk 0:02:55]} 3. e3 {[%clk 0:02:58]}  Nf6 {[%clk 0:02:51]} 4. b3 {[%clk 0:02:58]}  b6 {[%clk 0:02:45]} 5. Bb2 {[%clk 0:02:58]}  Bb7 {[%clk 0:02:45]} 6. Nc3 {[%clk 0:02:53]}  Nbd7 {[%clk 0:02:44]} 7. cxd5 {[%clk 0:02:44]}  exd5 {[%clk 0:02:44]} 8. Ne2 {[%clk 0:02:41]}  Bd6 {[%clk 0:02:36]} 9. g3 {[%clk 0:02:40]}  Nc5 {[%clk 0:01:53]} 10. Ned4 {[%clk 0:02:32]}  O-O {[%clk 0:01:51]} 11. Be2 {[%clk 0:02:26]}  Re8 {[%clk 0:01:46]} 12. O-O {[%clk 0:02:26]}  a5 {[%clk 0:01:41]} 13. Rc1 {[%clk 0:02:26]}  Bf8 {[%clk 0:01:39]} 14. Bb5 {[%clk 0:02:25]}  Ba6 {[%clk 0:01:09]} 15. Bxa6 {[%clk 0:02:19]}  Rxa6 {[%clk 0:01:08]} 16. Qe2 {[%clk 0:02:20]}  Ra8 {[%clk 0:01:07]} 17. Nc6 {[%clk 0:02:10]}  Qd6 {[%clk 0:01:05]} 18. Nfe5 {[%clk 0:02:08]}  Nfd7 {[%clk 0:00:53]} 19. d4 {[%clk 0:02:08]}  Nxe5 {[%clk 0:00:49]} 20. Nxe5 {[%clk 0:02:09]}  Ne6 {[%clk 0:00:42]} 21. Rc6 {[%clk 0:02:01]}  Qd8 {[%clk 0:00:42]} 22. Rfc1 {[%clk 0:01:57]}  f6 {[%clk 0:00:36]} 23. Nd3 {[%clk 0:01:54]}  Qd7 {[%clk 0:00:34]} 24. Qg4 {[%clk 0:01:50]}  h5 {[%clk 0:00:14]} 25. Qf5 {[%clk 0:01:41]}  Rad8 {[%clk 0:00:12]} 26. Qxh5 {[%clk 0:01:29]}  Nc5 {[%clk 0:00:11]} 27. R6xc5 {[%clk 0:01:23]}  bxc5 {[%clk 0:00:11]} 28. dxc5 {[%clk 0:01:24]}  a4 {[%clk 0:00:08]} 29. Nf4 {[%clk 0:01:20]}  axb3 {[%clk 0:00:07]} 30. axb3 {[%clk 0:01:21]}  Re4 {[%clk 0:00:05]} 31. Bd4 {[%clk 0:01:17]}  c6 {[%clk 0:00:05]} 32. Ra1 {[%clk 0:01:14]}  Qb7 {[%clk 0:00:04]} 33. Ng6 {[%clk 0:01:09]}  Ra8 {[%clk 0:00:04]} 34. Rxa8 {[%clk 0:01:01]}  Qxa8 {[%clk 0:00:05]} 35. Qh3 {[%clk 0:01:01]}  Qe8 {[%clk 0:00:03]} 36. Qh8+ {[%clk 0:00:56]}  Kf7 {[%clk 0:00:04]} 37. Nf4 {[%clk 0:00:56]}  Rxd4 {[%clk 0:00:03]} 38. Qh5+ {[%clk 0:00:50]}  Ke7 {[%clk 0:00:03]} 39. Qxe8+ {[%clk 0:00:51]}  Kxe8 {[%clk 0:00:04]} 40. exd4 {[%clk 0:00:52]}  g5 {[%clk 0:00:04]} 41. Ne2 {[%clk 0:00:41]}  f5 {[%clk 0:00:04]} 42. Kg2 {[%clk 0:00:38]}  Bg7 {[%clk 0:00:04]} 43. h4 {[%clk 0:00:37]}  g4 {[%clk 0:00:03]} 44. f3 {[%clk 0:00:34]}  Kd7 {[%clk 0:00:04]} 45. Kf2 {[%clk 0:00:34]}  Bh6 {[%clk 0:00:04]} 46. Nf4 {[%clk 0:00:31]}  Kc7 {[%clk 0:00:02]} 47. Ke2 {[%clk 0:00:25]}  Kb7 {[%clk 0:00:02]} 48. Ne6 {[%clk 0:00:25]}  Ka6 {[%clk 0:00:02]} 49. Nd8 {[%clk 0:00:23]}  Kb5 {[%clk 0:00:02]} 50. Nf7 {[%clk 0:00:24]}  gxf3+ {[%clk 0:00:02]} 51. Kxf3 {[%clk 0:00:24]}  Bg7 {[%clk 0:00:03]} 52. Nd6+ {[%clk 0:00:24]}  Kb4 {[%clk 0:00:03]} 53. Nxf5 {[%clk 0:00:25]}  Bf6 {[%clk 0:00:04]} 54. g4 {[%clk 0:00:25]}  Kxb3 {[%clk 0:00:04]} 55. g5 {[%clk 0:00:25]}  Bh8 {[%clk 0:00:05]} 56. h5 {[%clk 0:00:25]}  Kc4 {[%clk 0:00:06]} 57. h6 {[%clk 0:00:25]}  Bxd4 {[%clk 0:00:07]} 58. Nxd4 {[%clk 0:00:26]}  Kxd4 {[%clk 0:00:07]} 59. h7 {[%clk 0:00:27]} 1-0


[Site "https://www.chess.com"]

[Event "Titled Tuesday Blitz January 18 2022"]
[White "Yurovskykh, Oleksandr"]
[Black "Krivonosov, Oleg"]
[WhiteFideId "14134020"]
[BlackFideId "11600349"]
[WhiteElo "2292"]
[BlackElo "2455"]
[Result "0-1"]
[Round "10"]
[TimeControl "180+1"]
[Date "2022.01.18"]
[WhiteClock "0:00:08"]
[BlackClock "0:00:19"]

1. d4 {[%clk 0:02:56]}  d5 {[%clk 0:02:58]} 2. Bf4 {[%clk 0:02:56]}  Nf6 {[%clk 0:02:58]} 3. e3 {[%clk 0:02:55]}  e6 {[%clk 0:02:57]} 4. Nd2 {[%clk 0:02:53]}  c5 {[%clk 0:02:57]} 5. c3 {[%clk 0:02:53]}  Nc6 {[%clk 0:02:57]} 6. Ngf3 {[%clk 0:02:53]}  Bd6 {[%clk 0:02:58]} 7. Bg3 {[%clk 0:02:53]}  O-O {[%clk 0:02:57]} 8. Bb5 {[%clk 0:02:52]}  Ne7 {[%clk 0:02:53]} 9. Bd3 {[%clk 0:02:52]}  Qb6 {[%clk 0:02:52]} 10. Rb1 {[%clk 0:02:50]}  Bd7 {[%clk 0:02:47]} 11. Qb3 {[%clk 0:02:41]}  Bxg3 {[%clk 0:02:37]} 12. hxg3 {[%clk 0:02:38]}  c4 {[%clk 0:02:37]} 13. Qxb6 {[%clk 0:02:38]}  axb6 {[%clk 0:02:38]} 14. Bc2 {[%clk 0:02:37]}  Rxa2 {[%clk 0:02:36]} 15. g4 {[%clk 0:02:29]}  h6 {[%clk 0:02:33]} 16. g5 {[%clk 0:02:29]}  hxg5 {[%clk 0:02:32]} 17. Nxg5 {[%clk 0:02:29]}  Ba4 {[%clk 0:02:28]} 18. Bxa4 {[%clk 0:02:22]}  Rxa4 {[%clk 0:02:29]} 19. Ndf3 {[%clk 0:02:21]}  Nc6 {[%clk 0:02:24]} 20. Kd2 {[%clk 0:02:16]}  Ra2 {[%clk 0:02:15]} 21. Rh4 {[%clk 0:02:05]}  Rfa8 {[%clk 0:02:08]} 22. Rbh1 {[%clk 0:02:02]}  Kf8 {[%clk 0:02:06]} 23. Rh8+ {[%clk 0:02:01]}  Ke7 {[%clk 0:02:05]} 24. Rxa8 {[%clk 0:02:01]}  Rxa8 {[%clk 0:02:04]} 25. Ne5 {[%clk 0:01:48]}  Nxe5 {[%clk 0:01:58]} 26. dxe5 {[%clk 0:01:49]}  Nd7 {[%clk 0:01:48]} 27. Nf3 {[%clk 0:01:43]}  Nc5 {[%clk 0:01:43]} 28. Rh7 {[%clk 0:01:37]}  Ra2 {[%clk 0:01:29]} 29. Rxg7 {[%clk 0:01:34]}  Rxb2+ {[%clk 0:01:28]} 30. Kd1 {[%clk 0:01:33]}  Rxf2 {[%clk 0:01:26]} 31. Nh4 {[%clk 0:01:24]}  Ne4 {[%clk 0:01:13]} 32. Ng6+ {[%clk 0:01:21]}  Ke8 {[%clk 0:01:13]} 33. Rg8+ {[%clk 0:01:20]}  Kd7 {[%clk 0:01:12]} 34. Nf4 {[%clk 0:01:17]}  Nxc3+ {[%clk 0:01:02]} 35. Ke1 {[%clk 0:01:18]}  Ra2 {[%clk 0:00:56]} 36. Rf8 {[%clk 0:01:15]}  Ke7 {[%clk 0:00:51]} 37. Rc8 {[%clk 0:01:13]}  Ra1+ {[%clk 0:00:39]} 38. Kf2 {[%clk 0:01:09]}  Ne4+ {[%clk 0:00:39]} 39. Kf3 {[%clk 0:01:08]}  Nc5 {[%clk 0:00:39]} 40. Rc7+ {[%clk 0:01:00]}  Kd8 {[%clk 0:00:38]} 41. Rxf7 {[%clk 0:00:59]}  c3 {[%clk 0:00:38]} 42. Rf8+ {[%clk 0:00:48]}  Kc7 {[%clk 0:00:35]} 43. Rf7+ {[%clk 0:00:37]}  Kc6 {[%clk 0:00:34]} 44. Kg4 {[%clk 0:00:31]}  Rf1 {[%clk 0:00:24]} 45. Rh7 {[%clk 0:00:26]}  Kb5 {[%clk 0:00:22]} 46. Ne2 {[%clk 0:00:26]}  Kc4 {[%clk 0:00:19]} 47. Nxc3 {[%clk 0:00:09]}  Kxc3 {[%clk 0:00:19]} 48. Rc7 {[%clk 0:00:07]}  Kc4 {[%clk 0:00:19]} 49. Kh5 {[%clk 0:00:07]}  b5 {[%clk 0:00:19]} 50. g4 {[%clk 0:00:07]}  b4 {[%clk 0:00:19]} 51. g5 {[%clk 0:00:08]}  Rh1+ {[%clk 0:00:19]} 52. Kg4 {[%clk 0:00:08]}  b3 {[%clk 0:00:19]} 0-1


[Site "https://www.chess.com"]